fUSD/lending_fUSD_20240612
["ID","MTS","AMOUNT","RATE_DAILY","PERIOD"]
[329257926,1718202680196,-200.0,0.00024979,2]
[329257927,1718202680207,-218.0,0.00024979,2]
[329257928,1718202680218,-200.0,0.00024979,2]
[329257929,1718202680228,-200.0,0.00024979,2]
[329257930,1718202680238,-200.0,0.00024979,2]
[329257931,1718202680249,-200.0,0.00024979,2]
[329257932,1718202680259,-200.0,0.00024979,2]
[329257933,1718202680270,-221.0,0.00024979,2]
[329257934,1718202680281,-221.0,0.00024979,2]
[329257935,1718202680292,-221.0,0.00024979,2]
[329257936,1718202680304,-221.0,0.00024979,2]
[329257937,1718202680315,-221.0,0.00024979,2]
[329257938,1718202680329,-215.0,0.00024979,2]
[329257939,1718202680341,-215.0,0.00024979,2]
[329257940,1718202680352,-215.0,0.00024979,2]
[329257941,1718202680363,-215.0,0.00024979,2]
[329257942,1718202680374,-215.0,0.00024979,2]
[329257943,1718202680386,-215.0,0.00024979,2]
[329257944,1718202680398,-215.0,0.00024979,2]
[329257945,1718202680409,-215.0,0.00024979,2]
[329257946,1718202680420,-215.0,0.00024979,2]
[329257947,1718202680431,-202.0,0.00024979,2]
[329257948,1718202680443,-202.0,0.00024979,2]
[329257949,1718202680455,-500.0,0.00024979,2]
[329257950,1718202680466,-500.0,0.00024979,2]
[329257951,1718202680476,-477.17116411,0.00024979,2]
[329257952,1718202680488,-167.21639296,0.00024979,10]
[329257953,1718202680499,-151.0,0.00024979,3]
[329257954,1718202680511,-271.90523946,0.00024979,2]
[329257955,1718202680522,-1078251.23522236,0.0002498,5]
[329257956,1718202680533,-151.0,0.0002498,7]
[329257957,1718202680547,-151.0,0.0002498,7]
[329257958,1718202680558,-151.0,0.0002498,7]
[329257959,1718202680569,-151.0,0.0002498,7]
[329257960,1718202680580,-151.0,0.0002498,7]
[329257961,1718202680591,-151.0,0.0002498,7]
[329257962,1718202680604,-174.804846,0.0002498,7]
[329257963,1718202680614,-151.0,0.0002498,7]
[329257964,1718202680625,-151.0,0.0002498,7]
[329257965,1718202680645,-249.852965,0.0002498,7]
[329257966,1718202680661,-249.852965,0.0002498,7]
[329257967,1718202680672,-151.0,0.0002498,7]
[329257968,1718202680683,-151.0,0.0002498,7]
[329257969,1718202680696,-151.0,0.0002498,7]
[329257970,1718202680707,-151.0,0.0002498,7]
[329257971,1718202680718,-151.0,0.0002498,7]
[329257972,1718202680729,-151.0,0.0002498,7]
[329257973,1718202680742,-154.496375,0.0002498,7]
[329257974,1718202680753,-154.496375,0.0002498,7]
[329257975,1718202680765,-178.156736,0.0002498,7]
[329257976,1718202680776,-178.156736,0.0002498,7]
[329257977,1718202680788,-151.0,0.0002498,7]
[329257978,1718202680799,-151.0,0.0002498,7]
[329257979,1718202680810,-151.0,0.0002498,7]
[329257980,1718202680823,-4712.980203,0.0002498,7]
[329257981,1718202680834,-690.153061,0.0002498,7]
[329257982,1718202680846,-690.153061,0.0002498,7]
[329257983,1718202680858,-151.0,0.0002498,7]
[329257984,1718202680869,-4712.980203,0.0002498,7]
[329257985,1718202680881,-156.78611,0.0002498,7]
[329257986,1718202680893,-151.0,0.0002498,7]
[329257987,1718202680905,-212.773656,0.0002498,7]
[329257988,1718202680916,-151.863295,0.0002498,7]
[329257989,1718202680927,-390.98923795,0.00024982,2]
[329257990,1718202680939,-150.0,0.00024982,2]
[329257991,1718202680950,-151.63479869,0.0002499,2]
[329257992,1718202680961,-150.0,0.00024994,2]
[329257993,1718202680972,-469.39740845,0.00024995,2]
[329257994,1718202680983,-85378.94904896,0.00024999,2]
[329257995,1718202680995,-225.30126893,0.00025,2]
[329257996,1718202681007,-156.22060046,0.00025,2]
[329257997,1718202681018,-706.79756455,0.00025,2]
[329257998,1718202681029,-326.14509392,0.00025,2]
[329257999,1718202681045,-326.26842881,0.00025,2]
[329258000,1718202681065,-159.16193086,0.00025,2]
[329258001,1718202681077,-155.0,0.00025,2]
[329258002,1718202681088,-160.0,0.00025,2]
[329258003,1718202681099,-5874.02999614,0.00025,2]
[329258004,1718202681110,-457.14062155,0.00025,2]
[329258005,1718202681122,-14474.83506066,0.00025,2]
[329258006,1718202681133,-155.27812349,0.00025,2]
[329258007,1718202681146,-2210.54031375,0.00025,2]
[329258008,1718202681157,-2868.28184529,0.00025,2]
[329258009,1718202681331,-579.01,0.00025,4]
[329258010,1718202681360,-500.0,0.00025,2]
[329258011,1718202681371,-500.0,0.00025,4]
[329258012,1718202681381,-155.0,0.00025,2]
[329258013,1718202681391,-155.46056094,0.00025,2]
[329258014,1718202681402,-25269.31353394,0.00025,7]
[329258015,1718202681413,-2000.0,0.00025,2]
[329258016,1718202681424,-282.88908126,0.00025,2]
[329258017,1718202681434,-140668.47120227,0.00025,7]
[329258018,1718202681444,-58236.13898101,0.00025,7]
[329258019,1718202681455,-155.0,0.00025,2]
[329258020,1718202681464,-211.14,0.00025,2]
[329258021,1718202681475,-16970.0,0.00025,7]
[329258022,1718202681489,-4964.27580564,0.00025,2]
[329258023,1718202681511,-1277.7583517,0.00025,2]
[329258024,1718202681538,-154.70721752,0.00025,2]
[329258025,1718202681569,-2042.18770343,0.00025,2]
[329258026,1718202681580,-1800.0,0.00025,26]
[329258027,1718202681590,-538.92,0.00025,2]
[329258028,1718202681600,-500.0,0.00025,2]
[329258029,1718202681610,-500.0,0.00025,2]
[329258030,1718202681622,-1350.0,0.00025,2]
[329258031,1718202681667,-12754.04,0.00025,2]
[329258032,1718202681681,-3426.7,0.00025,2]
[329258033,1718202681692,-20000.0,0.00025,3]
[329258034,1718202681704,-598.076226,0.00025,2]
[329258035,1718202681715,-151.0,0.00025,7]
[329258036,1718202681725,-151.0,0.00025,7]
[329258037,1718202681737,-151.0,0.00025,7]
[329258038,1718202681756,-151.0,0.00025,7]
[329258039,1718202681766,-151.0,0.00025,7]
[329258040,1718202681777,-151.0,0.00025,7]
[329258041,1718202681787,-151.0,0.00025,7]
[329258042,1718202681798,-249.852965,0.00025,7]
[329258043,1718202681809,-249.852965,0.00025,7]
[329258044,1718202681819,-151.0,0.00025,7]
[329258045,1718202681830,-151.0,0.00025,7]
[329258046,1718202681841,-241.711974,0.00025,7]
[329258047,1718202681852,-500.0,0.00025,2]
[329258048,1718202681868,-500.0,0.00025,2]
[329258049,1718202681880,-500.0,0.00025,2]
[329258050,1718202681896,-500.0,0.00025,2]
[329258051,1718202681909,-500.0,0.00025,2]
[329258052,1718202681925,-500.0,0.00025,2]
[329258053,1718202681936,-150.0,0.00025,2]
[329258054,1718202681947,-200.0,0.00025,2]
[329258055,1718202681959,-151.0,0.00025,7]
[329258056,1718202681971,-151.0,0.00025,7]
[329258057,1718202681983,-151.0,0.00025,7]
[329258058,1718202681995,-1012.0,0.00025,2]
[329258059,1718202682005,-154.496375,0.00025,7]
[329258060,1718202682015,-15324.26933063,0.00025,2]
[329258061,1718202682027,-154.496375,0.00025,7]
[329258062,1718202682038,-178.156736,0.00025,7]
[329258063,1718202682049,-178.156736,0.00025,7]
[329258064,1718202682060,-230.369848,0.00025,7]
[329258065,1718202682071,-275.5,0.00025,2]
[329258066,1718202682082,-151.0,0.00025,7]
[329258067,1718202682093,-151.0,0.00025,7]
[329258068,1718202682104,-690.153061,0.00025,7]
[329258069,1718202682115,-150.0,0.00025,4]
[329258070,1718202682127,-690.153061,0.00025,7]
[329258071,1718202682138,-199.602561,0.00025,7]
[329258072,1718202682149,-4712.980203,0.00025,7]
[329258073,1718202682160,-4712.980203,0.00025,7]
[329258074,1718202682170,-151.0,0.00025,7]
[329258075,1718202682181,-469.39740845,0.00025021,2]
[329258076,1718202682193,-151.63479869,0.00025021,2]
[329258077,1718202682206,-308.24429039,0.00025022,2]
[329258078,1718202682217,-1000.0,0.00025023,14]
[329258079,1718202682230,-150.0,0.00025031,2]
[329258080,1718202682242,-5994.43902586,0.00025037,2]
[329258081,1718202682254,-390.98923795,0.00025043,2]
[329258082,1718202682273,-153.25802494,0.00025044,2]
[329258083,1718202682286,-740.03083082,0.00025061,2]
[329258084,1718202682309,-332.2647723,0.00025061,2]
[329258085,1718202682323,-1000.0,0.00025067,2]
[329258086,1718202682335,-631.79706747,0.00025068,2]
[329258087,1718202682348,-1530.06120107,0.00025068,2]
[329258088,1718202682364,-161.15554008,0.00025084,2]
[329258089,1718202682377,-5994.43902586,0.00025092,2]
[329258090,1718202682391,-175.55319433,0.00025095,2]
[329258091,1718202682404,-153.25802494,0.00025104,2]
[329258092,1718202682415,-390.98923795,0.00025104,2]
[329258093,1718202682429,-153.25802494,0.00025116,2]
[329258094,1718202682441,-390.98923795,0.0002512,2]
[329258095,1718202682454,-159.55162632,0.00025125,2]
[329258096,1718202682465,-155.25048379,0.00025139,2]
[329258097,1718202682477,-1000.0,0.00025145,14]
[329258098,1718202682489,-165.4093236,0.00025157,2]
[329258099,1718202682503,-379.78722094,0.0002518,2]
[329258100,1718202682516,-308.24429039,0.00025186,2]
[329258101,1718202682550,-167.40768924,0.00025199,2]
[329258102,1718202682577,-390.98923795,0.00025199,2]
[329258103,1718202682590,-1000.0,0.00025205,2]
[329258104,1718202682604,-150.27807951,0.00025208,2]
[329258105,1718202682622,-158.95779896,0.00025212,2]
[329258106,1718202682658,-390.98923795,0.00025222,2]
[329258107,1718202682672,-155.25048379,0.00025226,2]
[329258108,1718202682684,-388.0,0.00025227,2]
[329258109,1718202682698,-152.75193077,0.00025227,2]
[329258110,1718202682713,-5994.43902586,0.00025236,2]
[329258111,1718202682724,-158.32026496,0.00025243,2]
[329258112,1718202682736,-152.0,0.00025245,3]
[329258113,1718202682747,-151.63479869,0.00025253,2]
[329258114,1718202682757,-1000.0,0.00025266,14]
[329258115,1718202682770,-245.03,0.00025288,2]
[329258116,1718202682781,-300.0,0.00025288,2]
[329258117,1718202682793,-328.56,0.00025288,2]
[329258118,1718202682808,-152.57735205,0.00025302,2]
[329258119,1718202682818,-159.55162632,0.00025307,2]
[329258120,1718202682831,-152.75193077,0.00025308,2]
[329258121,1718202682842,-154.89060014,0.00025317,2]
[329258122,1718202682853,-153.25802494,0.00025319,2]
[329258123,1718202682864,-151.63479869,0.00025321,2]
[329258124,1718202682875,-390.98923795,0.00025331,2]
[329258125,1718202682886,-5994.43902586,0.00025348,2]
[329258126,1718202682897,-847.21465141,0.00025353,2]
[329258127,1718202682928,-379.78722094,0.00025355,2]
[329258128,1718202682939,-1914.80583508,0.00025358,2]
[329258129,1718202682951,-11250.59413662,0.00025371,2]
[329258130,1718202682961,-155.25048379,0.00025377,2]
[329258131,1718202682972,-390.98923795,0.00025377,2]
[329258132,1718202682983,-1000.0,0.00025388,14]
[329258133,1718202682994,-150.0,0.000254,4]
[329258134,1718202683033,-150.0,0.000254,4]
[329258135,1718202683045,-150.0,0.000254,4]
[329258136,1718202683056,-154.89060014,0.00025408,2]
[329258137,1718202683066,-332.2647723,0.00025408,2]
[329258138,1718202683077,-150.0,0.00025409,2]
[329258139,1718202683088,-151.63479869,0.00025412,2]
[329258140,1718202683099,-1914.80583508,0.00025416,2]
[329258141,1718202683110,-166.66666666,0.00025425,2]
[329258142,1718202683122,-308.24429039,0.00025427,2]
[329258143,1718202683133,-166.66666666,0.00025439,2]
[329258144,1718202683144,-151.63479869,0.00025458,2]
[329258145,1718202683155,-166.66666666,0.00025461,2]
[329258146,1718202683166,-166.66666666,0.00025474,2]
[329258147,1718202683176,-151.0,0.00025479,7]
[329258148,1718202683187,-151.0,0.00025479,7]
[329258149,1718202683197,-151.0,0.00025479,7]
[329258150,1718202683207,-151.0,0.00025479,7]
[329258151,1718202683218,-173.561895,0.00025479,7]
[329258152,1718202683229,-600.0,0.0002548,4]
[329258153,1718202683239,-150.0,0.00025482,2]
[329258154,1718202683251,-1717.14878,0.0002549,2]
[329258155,1718202683263,-30000.0,0.000255,3]
[329258156,1718202683278,-150.0,0.000255,4]
[329258157,1718202683289,-1000.0,0.0002551,14]
[329258158,1718202683304,-740.03083082,0.00025511,2]
[329258159,1718202683316,-178.77183197,0.00025529,2]
[329258160,1718202683327,-1914.80583508,0.00025536,2]
[329258161,1718202683339,-151.63479869,0.00025536,2]
[329258162,1718202683349,-847.21465141,0.00025542,2]
[329258163,1718202683361,-153.51553158,0.00025545,2]
[329258164,1718202683371,-151.63479869,0.0002556,2]
[329258165,1718202683383,-150.27807951,0.00025565,2]
[329258166,1718202683395,-152.57735205,0.00025567,2]
[329258167,1718202683407,-166.66666666,0.00025573,2]
[329258168,1718202683420,-1914.80583508,0.00025574,2]
[329258169,1718202683434,-447.24511978,0.00025577,2]
[329258170,1718202683445,-1204.75428974,0.00025577,2]
[329258171,1718202683458,-169.24834234,0.00025577,2]
[329258172,1718202683469,-155.25048379,0.00025581,2]
[329258173,1718202683484,-150.27807951,0.00025588,2]
[329258174,1718202683494,-469.39740845,0.00025595,2]
[329258175,1718202683504,-151.63479869,0.00025596,2]
[329258176,1718202683515,-2000.0,0.000256,2]
[329258177,1718202683525,-154.89060014,0.00025607,2]
[329258178,1718202683536,-301.56,0.0002562,2]
[329258179,1718202683546,-159.55162632,0.00025627,2]
[329258180,1718202683556,-1000.0,0.00025632,14]
[329258181,1718202683567,-160.6976834,0.00025633,2]
[329258182,1718202683577,-153.51553158,0.00025654,2]
[329258183,1718202683589,-5994.43902586,0.00025655,2]
[329258184,1718202683601,-151.63479869,0.00025655,2]
[329258185,1718202683613,-152.75193077,0.0002567,2]
[329258186,1718202683624,-308.24429039,0.00025687,2]
[329258187,1718202683647,-166.66666666,0.00025694,2]
[329258188,1718202683663,-12754.04,0.000257,2]
[329258189,1718202683677,-3426.7,0.000257,2]
[329258190,1718202683689,-150.0,0.000257,2]
[329258191,1718202683701,-155.25048379,0.00025703,2]
[329258192,1718202683716,-5994.43902586,0.00025703,2]
[329258193,1718202683727,-847.21465141,0.00025706,2]
[329258194,1718202683739,-153.39895733,0.00025707,2]
[329258195,1718202683756,-332.2647723,0.00025709,2]
[329258196,1718202683767,-308.24429039,0.00025725,2]
[329258197,1718202683780,-1000.0,0.00025753,14]
[329258198,1718202683791,-207.0304179,0.00025767,2]
[329258199,1718202683802,-153.25802494,0.00025767,2]
[329258200,1718202683814,-332.2647723,0.00025769,2]
[329258201,1718202683825,-153.51553158,0.00025771,2]
[329258202,1718202683838,-166.66666666,0.00025781,2]
[329258203,1718202683850,-847.21465141,0.00025784,2]
[329258204,1718202683860,-1500.0,0.00025793,2]
[329258205,1718202683875,-166.65534303,0.00025797,2]
[329258206,1718202683886,-155.20948984,0.00025798,2]
[329258207,1718202683897,-332.2647723,0.00025844,2]
[329258208,1718202683908,-151.63479869,0.00025847,2]
[329258209,1718202683924,-740.03083082,0.00025856,2]
[329258210,1718202683936,-469.39740845,0.00025863,2]
[329258211,1718202683959,-1000.0,0.00025875,14]
[329258212,1718202683973,-166.66666666,0.0002588,2]
[329258213,1718202683985,-740.03083082,0.00025886,2]
[329258214,1718202683998,-258.81,0.0002589,2]
[329258215,1718202684012,-768.2871244,0.000259,2]
[329258216,1718202684023,-945.0,0.000259,14]
[329258217,1718202684035,-150.0,0.000259,4]
[329258218,1718202684046,-150.0,0.000259,4]
[329258219,1718202684058,-150.0,0.000259,4]
[329258220,1718202684070,-150.27807951,0.00025902,2]
[329258221,1718202684080,-390.98923795,0.00025926,2]
[329258222,1718202684092,-150.27807951,0.00025931,2]
[329258223,1718202684103,-379.78722094,0.00025931,2]
[329258224,1718202684114,-166.66666667,0.00025942,2]
[329258225,1718202684124,-154.89060014,0.00025942,2]
[329258226,1718202684135,-390.98923795,0.00025948,2]
[329258227,1718202684145,-5994.43902586,0.00025956,2]
[329258228,1718202684155,-152.0,0.00025965,4]
[329258229,1718202684166,-700.0,0.0002597,2]
[329258230,1718202684176,-400.0,0.0002597,2]
[329258231,1718202684187,-700.0,0.0002597,2]
[329258232,1718202684199,-400.0,0.0002597,2]
[329258233,1718202684210,-167.12,0.00025979,2]
[329258234,1718202684221,-847.21465141,0.00025981,2]
[329258235,1718202684233,-154.89060014,0.0002599,2]
[329258236,1718202684244,-169.00998554,0.00025994,2]
[329258237,1718202684255,-1000.0,0.00025997,14]
[329258238,1718202684265,-1800.0,0.00026,27]
[329258239,1718202684276,-5372.4747393,0.00026,5]
[329258240,1718202684287,-380.5296931,0.00026,2]
[329258241,1718202684297,-621.89743,0.00026,10]
[329258242,1718202684307,-50000.0,0.00026,6]
[329258243,1718202684318,-277.6895978,0.00026,2]
[329258244,1718202684328,-1966.53005774,0.00026,2]
[329258245,1718202684404,-5121.0,0.00026,2]
[329258246,1718202684416,-1845.0,0.00026,2]
[329258247,1718202684426,-3000.0,0.00026,2]
[329258248,1718202684436,-151.0,0.00026,7]
[329258249,1718202684447,-249.852965,0.00026,7]
[329258250,1718202684458,-249.852965,0.00026,7]
[329258251,1718202684468,-151.0,0.00026,7]
[329258252,1718202684478,-275.5,0.00026,2]
[329258253,1718202684489,-151.0,0.00026,7]
[329258254,1718202684499,-151.0,0.00026,7]
[329258255,1718202684510,-150.0,0.00026,4]
[329258256,1718202684520,-5994.43902586,0.00026004,2]
[329258257,1718202684532,-152.57735205,0.00026005,2]
[329258258,1718202684547,-390.98923795,0.00026008,2]
[329258259,1718202684564,-151.0,0.00026027,7]
[329258260,1718202684574,-151.0,0.00026027,7]
[329258261,1718202684587,-151.0,0.00026027,7]
[329258262,1718202684598,-151.0,0.00026027,7]
[329258263,1718202684609,-151.0,0.00026027,7]
[329258264,1718202684620,-151.0,0.00026027,7]
[329258265,1718202684632,-265.08547,0.00026027,7]
[329258266,1718202684658,-151.0,0.00026027,7]
[329258267,1718202684672,-151.0,0.00026027,7]
[329258268,1718202684684,-151.0,0.00026027,7]
[329258269,1718202684695,-151.0,0.00026027,7]
[329258270,1718202684708,-151.0,0.00026027,7]
[329258271,1718202684718,-249.852965,0.00026027,7]
[329258272,1718202684728,-249.852965,0.00026027,7]
[329258273,1718202684740,-1500.0,0.00026027,30]
[329258274,1718202684751,-151.0,0.00026027,7]
[329258275,1718202684761,-242.010245,0.00026027,7]
[329258276,1718202684771,-151.0,0.00026027,7]
[329258277,1718202684783,-151.0,0.00026027,7]
[329258278,1718202684800,-151.0,0.00026027,7]
[329258279,1718202684811,-151.0,0.00026027,7]
[329258280,1718202684822,-151.0,0.00026027,7]
[329258281,1718202684834,-151.0,0.00026027,7]
[329258282,1718202684844,-154.496375,0.00026027,7]
[329258283,1718202684854,-154.496375,0.00026027,7]
[329258284,1718202684866,-154.496375,0.00026027,7]
[329258285,1718202684878,-154.496375,0.00026027,7]
[329258286,1718202684889,-178.156736,0.00026027,7]
[329258287,1718202684900,-178.156736,0.00026027,7]
[329258288,1718202684911,-178.156736,0.00026027,7]
[329258289,1718202684922,-178.156736,0.00026027,7]
[329258290,1718202684933,-151.0,0.00026027,7]
[329258291,1718202684943,-185.937177,0.00026027,7]
[329258292,1718202684955,-690.153061,0.00026027,7]
[329258293,1718202684968,-690.153061,0.00026027,7]
[329258294,1718202684981,-690.153061,0.00026027,7]
[329258295,1718202684996,-690.153061,0.00026027,7]
[329258296,1718202685008,-4712.980203,0.00026027,7]
[329258297,1718202685020,-4712.980203,0.00026027,7]
[329258298,1718202685032,-4712.980203,0.00026027,7]
[329258299,1718202685043,-4712.980203,0.00026027,7]
[329258300,1718202685057,-19150.97,0.00026027,2]
[329258301,1718202685068,-19150.97,0.00026027,2]
[329258302,1718202685083,-19150.97,0.00026027,2]
[329258303,1718202685093,-19150.97,0.00026027,2]
[329258304,1718202685104,-19150.97,0.00026027,2]
[329258305,1718202685115,-19150.97,0.00026027,2]
[329258306,1718202685126,-19150.97,0.00026027,2]
[329258307,1718202685137,-19150.97,0.00026027,2]
[329258308,1718202685150,-19150.97,0.00026027,2]
[329258309,1718202685162,-19150.97,0.00026027,2]
[329258310,1718202685173,-19150.97,0.00026027,2]
[329258311,1718202685184,-18216.27754044,0.00026027,2]
[329258312,1718202686057,-3728.18370699,0.00020594,2]
[329258313,1718202686068,-151.863295,0.00025,7]
[329258314,1718202686078,-151.863295,0.00026009,7]
[329258315,1718202686090,-934.69245956,0.00026027,2]
[329258316,1718202686101,-151.0,0.00026027,7]
[329258317,1718202686112,-19150.97,0.00026027,2]
[329258318,1718202686123,-151.0,0.00026027,7]
[329258319,1718202686134,-19150.97,0.00026027,2]
[329258320,1718202686145,-19150.97,0.00026027,2]
[329258321,1718202686157,-19150.97,0.00026027,2]
[329258322,1718202686168,-19150.97,0.00026027,2]
[329258323,1718202686180,-19150.97,0.00026027,2]
[329258324,1718202686191,-19150.97,0.00026027,2]
[329258325,1718202686206,-19150.97,0.00026027,2]
[329258326,1718202686218,-15679.25519449,0.00026027,2]
[329258327,1718202686232,-3471.71480551,0.00026027,2]
[329258328,1718202686243,-3512.47319449,0.00026027,2]
[329258329,1718202686257,-424.35038744,0.00026027,2]
[329258330,1718202686270,-15214.14641807,0.00026027,2]
[329258331,1718202686281,-19150.97,0.00026027,2]
[329258332,1718202686292,-19151.05576588,0.00026027,2]
[329258333,1718202686303,-153.25802494,0.00026028,2]
[329258334,1718202686316,-1914.80583508,0.00026029,2]
[329258335,1718202686328,-166.63300067,0.0002603,2]
[329258336,1718202686338,-156.8309882,0.00026044,2]
[329258337,1718202686350,-308.24429039,0.0002605,2]
[329258338,1718202686361,-153.51553158,0.00026066,2]
[329258339,1718202686372,-5994.43902586,0.00026069,2]
[329258340,1718202686384,-308.24429039,0.00026073,2]
[329258341,1718202686394,-323.45,0.00026075,2]
[329258342,1718202686404,-390.98923795,0.00026075,2]
[329258343,1718202686416,-740.03083082,0.00026106,2]
[329258344,1718202686427,-1000.0,0.00026119,14]
[329258345,1718202686438,-174.05631097,0.00026135,2]
[329258346,1718202686449,-160.6976834,0.00026157,2]
[329258347,1718202686461,-159.55162632,0.0002616,2]
[329258348,1718202686475,-152.75193077,0.00026162,2]
[329258349,1718202686486,-390.98923795,0.00026169,2]
[329258350,1718202686498,-165.4093236,0.00026175,2]
[329258351,1718202686510,-150.27807951,0.00026175,2]
[329258352,1718202686521,-153.25802494,0.00026191,2]
[329258353,1718202686532,-469.39740845,0.00026192,2]
[329258354,1718202686542,-1000.0,0.00026194,2]
[329258355,1718202686554,-161.15554008,0.00026197,2]
[329258356,1718202686565,-153.39895733,0.000262,2]
[329258357,1718202686577,-151.48043344,0.00026224,2]
[329258358,1718202686589,-740.03083082,0.00026224,2]
[329258359,1718202686601,-153.39895733,0.00026228,2]
[329258360,1718202686612,-153.51553158,0.00026235,2]
[329258361,1718202686624,-1000.0,0.0002624,14]
[329258362,1718202686649,-379.78722094,0.00026245,2]
[329258363,1718202686665,-469.39740845,0.00026246,2]
[329258364,1718202686676,-469.39740845,0.00026254,2]
[329258365,1718202686687,-469.39740845,0.00026262,2]
[329258366,1718202686699,-390.98923795,0.00026262,2]
[329258367,1718202686711,-847.21465141,0.00026264,2]
[329258368,1718202686723,-152.75193077,0.00026266,2]
[329258369,1718202686735,-153.39895733,0.00026289,2]
[329258370,1718202686746,-388.0,0.00026293,2]
[329258371,1718202686757,-5994.43902586,0.000263,2]
[329258372,1718202686768,-1500.0,0.00026301,30]
[329258373,1718202686779,-66241.03,0.00026301,2]
[329258374,1718202686790,-2000.0,0.00026301,3]
[329258375,1718202686801,-740.03083082,0.00026303,2]
[329258376,1718202686812,-151.63479869,0.00026312,2]
[329258377,1718202686823,-150.0,0.00026317,2]
[329258378,1718202686834,-151.63479869,0.00026319,2]
[329258379,1718202686844,-332.2647723,0.00026338,2]
[329258380,1718202686855,-152.75193077,0.00026341,2]
[329258381,1718202686866,-153.25802494,0.00026347,2]
[329258382,1718202686876,-996.56,0.0002636,2]
[329258383,1718202686887,-1000.0,0.00026362,14]
[329258384,1718202686898,-390.98923795,0.00026372,2]
[329258385,1718202686908,-158.32026496,0.00026383,2]
[329258386,1718202686919,-151.63479869,0.00026389,2]
[329258387,1718202686930,-19261.26150909,0.000264,2]
[329258388,1718202686940,-945.0,0.000264,14]
[329258389,1718202686951,-12754.04,0.000264,2]
[329258390,1718202686963,-3426.7,0.000264,2]
[329258391,1718202686975,-150.0,0.000264,5]
[329258392,1718202686985,-150.0,0.000264,5]
[329258393,1718202686998,-150.0,0.000264,5]
[329258394,1718202687008,-390.98923795,0.00026414,2]
[329258395,1718202687019,-482.66,0.00026417,2]
[329258396,1718202687030,-1914.80583508,0.00026419,2]
[329258397,1718202687041,-301.56,0.0002644,2]
[329258398,1718202687051,-379.78722094,0.00026441,2]
[329258399,1718202687062,-825.58218641,0.0002646,5]
[329258400,1718202687072,-4440.0,0.00026463,7]
[329258401,1718202687084,-153.25802494,0.00026476,2]
[329258402,1718202687096,-11250.59413662,0.00026481,2]
[329258403,1718202687108,-152.57735205,0.00026484,2]
[329258404,1718202687119,-1000.0,0.00026484,14]
[329258405,1718202687130,-153.39895733,0.00026499,2]
[329258406,1718202687141,-150.0,0.000265,5]
[329258407,1718202687153,-308.24429039,0.00026501,2]
[329258408,1718202687164,-166.66666666,0.00026508,2]
[329258409,1718202687176,-847.21465141,0.00026514,2]
[329258410,1718202687187,-150.0,0.00026515,2]
[329258411,1718202687197,-847.21465141,0.00026529,2]
[329258412,1718202687209,-151.63479869,0.00026538,2]
[329258413,1718202687219,-469.39740845,0.00026541,2]
[329258414,1718202687231,-166.6666667,0.00026565,2]
[329258415,1718202687241,-1500.0,0.00026575,30]
[329258416,1718202687271,-2000.0,0.000266,2]
[329258417,1718202687283,-153.96520925,0.000266,2]
[329258418,1718202687294,-151.0,0.00026601,7]
[329258419,1718202687304,-249.852965,0.00026601,7]
[329258420,1718202687315,-249.852965,0.00026601,7]
[329258421,1718202687326,-151.0,0.00026601,7]
[329258422,1718202687337,-1000.0,0.00026606,14]
[329258423,1718202687348,-156.8309882,0.00026609,2]
[329258424,1718202687359,-153.39895733,0.00026624,2]
[329258425,1718202687371,-151.0,0.00026639,2]